[Event "Titled Tuesday Blitz June 13 Late 2023"]
[White "Elaisaz"]
[Black "Fieberg, Samuel"]
[BlackFideId "12901717"]
[WhiteElo "2153"]
[BlackElo "2558"]
[Result "1-0"]
[Round "1"]
[TimeControl "180+2"]
[Date "2023.06.13"]
[WhiteClock "0:01:29"]
[BlackClock "0:00:46"]
[Board "181"]

1. d4 {[%clk 0:03:00]}  d5 {[%clk 0:02:59]} 2. Bf4 {[%clk 0:03:00]}  c5 {[%clk 0:02:59]} 3. e3 {[%clk 0:03:00]}  Nc6 {[%clk 0:03:00]} 4. c3 {[%clk 0:02:59]}  cxd4 {[%clk 0:02:54]} 5. exd4 {[%clk 0:02:58]}  Bf5 {[%clk 0:02:53]} 6. Bd3 {[%clk 0:02:58]}  Bxd3 {[%clk 0:02:51]} 7. Qxd3 {[%clk 0:02:45]}  e6 {[%clk 0:02:51]} 8. Nf3 {[%clk 0:02:45]}  Bd6 {[%clk 0:02:48]} 9. Bxd6 {[%clk 0:02:45]}  Qxd6 {[%clk 0:02:49]} 10. O-O {[%clk 0:02:45]}  Nge7 {[%clk 0:02:42]} 11. Nbd2 {[%clk 0:02:46]}  O-O {[%clk 0:02:39]} 12. Rae1 {[%clk 0:02:46]}  Qf4 {[%clk 0:02:35]} 13. Ne5 {[%clk 0:02:42]}  Nxe5 {[%clk 0:02:32]} 14. Rxe5 {[%clk 0:02:40]}  Ng6 {[%clk 0:02:18]} 15. Ree1 {[%clk 0:02:37]}  a6 {[%clk 0:02:18]} 16. g3 {[%clk 0:02:37]}  Qg4 {[%clk 0:02:10]} 17. f3 {[%clk 0:02:33]}  Qh3 {[%clk 0:02:08]} 18. Qe2 {[%clk 0:02:15]}  Rac8 {[%clk 0:02:04]} 19. Qg2 {[%clk 0:02:15]}  Qf5 {[%clk 0:02:00]} 20. f4 {[%clk 0:02:10]}  Qc2 {[%clk 0:01:43]} 21. Nf3 {[%clk 0:02:05]}  Qa4 {[%clk 0:01:43]} 22. a3 {[%clk 0:02:04]}  b5 {[%clk 0:01:37]} 23. Ne5 {[%clk 0:02:04]}  a5 {[%clk 0:01:29]} 24. Nd7 {[%clk 0:02:02]}  Rfd8 {[%clk 0:01:25]} 25. Nb6 {[%clk 0:02:02]}  Qb3 {[%clk 0:01:25]} 26. Nxc8 {[%clk 0:02:02]}  Rxc8 {[%clk 0:01:26]} 27. f5 {[%clk 0:02:01]}  Nf8 {[%clk 0:01:22]} 28. f6 {[%clk 0:01:58]}  b4 {[%clk 0:01:09]} 29. fxg7 {[%clk 0:01:56]}  Ng6 {[%clk 0:01:05]} 30. axb4 {[%clk 0:01:55]}  axb4 {[%clk 0:01:04]} 31. Qf2 {[%clk 0:01:52]}  Rc7 {[%clk 0:00:59]} 32. Rxe6 {[%clk 0:01:46]}  Kxg7 {[%clk 0:00:56]} 33. Qf6+ {[%clk 0:01:42]}  Kh6 {[%clk 0:00:53]} 34. Qf4+ {[%clk 0:01:29]}  Kg7 {[%clk 0:00:50]} 35. Rxg6+ {[%clk 0:01:29]}  hxg6 {[%clk 0:00:46]} 36. Qxc7 {[%clk 0:01:29]} 1-0


[Site "https://www.chess.com"]

[Event "Titled Tuesday Blitz June 13 Late 2023"]
[White "Kim, Sergey"]
[Black "Phillips, Rene"]
[WhiteFideId "13700570"]
[BlackFideId "2056275"]
[WhiteElo "2549"]
[BlackElo "2114"]
[Result "1-0"]
[Round "1"]
[TimeControl "180+2"]
[Date "2023.06.13"]
[WhiteClock "0:02:11"]
[BlackClock "0:01:20"]
[Board "188"]

1. d4 {[%clk 0:03:00]}  Nc6 {[%clk 0:02:59]} 2. c4 {[%clk 0:02:59]}  e5 {[%clk 0:02:57]} 3. d5 {[%clk 0:02:59]}  Bb4+ {[%clk 0:02:57]} 4. Bd2 {[%clk 0:02:59]}  Bxd2+ {[%clk 0:02:56]} 5. Qxd2 {[%clk 0:02:59]}  Nce7 {[%clk 0:02:56]} 6. Nc3 {[%clk 0:02:59]}  d6 {[%clk 0:02:56]} 7. e4 {[%clk 0:02:59]}  f5 {[%clk 0:02:55]} 8. Bd3 {[%clk 0:02:57]}  Nf6 {[%clk 0:02:54]} 9. Nge2 {[%clk 0:02:52]}  O-O {[%clk 0:02:52]} 10. exf5 {[%clk 0:02:49]}  Nxf5 {[%clk 0:02:48]} 11. Bxf5 {[%clk 0:02:48]}  Bxf5 {[%clk 0:02:48]} 12. Ng3 {[%clk 0:02:48]}  Bg6 {[%clk 0:02:46]} 13. O-O {[%clk 0:02:48]}  b6 {[%clk 0:02:46]} 14. f4 {[%clk 0:02:47]}  exf4 {[%clk 0:02:45]} 15. Rxf4 {[%clk 0:02:47]}  Qd7 {[%clk 0:02:40]} 16. Raf1 {[%clk 0:02:44]}  Nh5 {[%clk 0:02:30]} 17. Nxh5 {[%clk 0:02:43]}  Bxh5 {[%clk 0:02:29]} 18. Nb5 {[%clk 0:02:42]}  a6 {[%clk 0:02:25]} 19. Nd4 {[%clk 0:02:42]}  Rxf4 {[%clk 0:02:22]} 20. Qxf4 {[%clk 0:02:41]}  Bg6 {[%clk 0:02:17]} 21. Ne6 {[%clk 0:02:38]}  Qe7 {[%clk 0:02:08]} 22. h4 {[%clk 0:02:32]}  Bd3 {[%clk 0:02:02]} 23. Rf3 {[%clk 0:02:29]}  Be2 {[%clk 0:01:57]} 24. Rg3 {[%clk 0:02:28]}  Bh5 {[%clk 0:01:45]} 25. Qf5 {[%clk 0:02:22]}  Bg6 {[%clk 0:01:43]} 26. Qg4 {[%clk 0:02:20]}  Qf7 {[%clk 0:01:29]} 27. Rf3 {[%clk 0:02:11]}  Bh5 {[%clk 0:01:23]} 28. Rxf7 {[%clk 0:02:11]}  Bxg4 {[%clk 0:01:20]} 29. Rxg7+ {[%clk 0:02:11]} 1-0


[Site "https://www.chess.com"]

[Event "Titled Tuesday Blitz June 13 Late 2023"]
[White "Fedotov, Nikita"]
[Black "zano2023"]
[WhiteFideId "24161446"]
[WhiteElo "2211"]
[BlackElo "2081"]
[Result "0-1"]
[Round "1"]
[TimeControl "180+2"]
[Date "2023.06.13"]
[WhiteClock "0:01:07"]
[BlackClock "0:01:36"]
[Board "190"]

1. e4 {[%clk 0:03:00]}  e5 {[%clk 0:02:59]} 2. Nf3 {[%clk 0:03:00]}  d6 {[%clk 0:02:59]} 3. Nc3 {[%clk 0:03:00]}  f5 {[%clk 0:02:55]} 4. d4 {[%clk 0:02:59]}  Nf6 {[%clk 0:02:54]} 5. dxe5 {[%clk 0:02:58]}  Nxe4 {[%clk 0:02:55]} 6. Nxe4 {[%clk 0:02:52]}  fxe4 {[%clk 0:02:55]} 7. Ng5 {[%clk 0:02:52]}  d5 {[%clk 0:02:55]} 8. Be2 {[%clk 0:02:40]}  Be7 {[%clk 0:02:47]} 9. f4 {[%clk 0:02:33]}  Bxg5 {[%clk 0:02:38]} 10. fxg5 {[%clk 0:02:33]}  O-O {[%clk 0:02:39]} 11. Be3 {[%clk 0:02:29]}  Nc6 {[%clk 0:02:31]} 12. Qd2 {[%clk 0:02:10]}  Nxe5 {[%clk 0:02:29]} 13. O-O-O {[%clk 0:02:10]}  c6 {[%clk 0:02:25]} 14. Bd4 {[%clk 0:02:06]}  Ng4 {[%clk 0:02:14]} 15. Bxg4 {[%clk 0:01:48]}  Bxg4 {[%clk 0:02:13]} 16. Rdf1 {[%clk 0:01:49]}  Qe7 {[%clk 0:02:08]} 17. Qe3 {[%clk 0:01:47]}  b6 {[%clk 0:02:06]} 18. h3 {[%clk 0:01:36]}  Bd7 {[%clk 0:01:54]} 19. Qg3 {[%clk 0:01:32]}  Bf5 {[%clk 0:01:45]} 20. h4 {[%clk 0:01:29]}  Rae8 {[%clk 0:01:41]} 21. h5 {[%clk 0:01:23]}  c5 {[%clk 0:01:42]} 22. Be3 {[%clk 0:01:08]}  d4 {[%clk 0:01:40]} 23. Bf4 {[%clk 0:01:08]}  e3 {[%clk 0:01:38]} 24. Bd6 {[%clk 0:01:08]}  Qe4 {[%clk 0:01:36]} 25. Bxf8 {[%clk 0:01:07]}  Qxc2# {[%clk 0:01:36]} 0-1


[Site "https://www.chess.com"]

[Event "Titled Tuesday Blitz June 13 Late 2023"]
[White "Maluco_do_Natal_00"]
[Black "Diaz Rosas, Julio Cesar"]
[BlackFideId "5105099"]
[WhiteElo "2080"]
[BlackElo "2284"]
[Result "0-1"]
[Round "1"]
[TimeControl "180+2"]
[Date "2023.06.13"]
[WhiteClock "0:00:05"]
[BlackClock "0:01:44"]
[Board "191"]

1. e4 {[%clk 0:02:58]}  c5 {[%clk 0:02:57]} 2. Nf3 {[%clk 0:02:57]}  d6 {[%clk 0:02:57]} 3. d4 {[%clk 0:02:58]}  cxd4 {[%clk 0:02:58]} 4. Nxd4 {[%clk 0:02:58]}  Nf6 {[%clk 0:02:58]} 5. Nc3 {[%clk 0:02:58]}  a6 {[%clk 0:02:59]} 6. Be3 {[%clk 0:02:58]}  e5 {[%clk 0:02:59]} 7. Nb3 {[%clk 0:02:59]}  Be7 {[%clk 0:02:59]} 8. f3 {[%clk 0:02:58]}  O-O {[%clk 0:02:58]} 9. Qd2 {[%clk 0:02:58]}  a5 {[%clk 0:02:58]} 10. Bb5 {[%clk 0:02:13]}  Bd7 {[%clk 0:02:48]} 11. a4 {[%clk 0:02:03]}  Na6 {[%clk 0:02:44]} 12. g4 {[%clk 0:01:46]}  Nb4 {[%clk 0:02:35]} 13. g5 {[%clk 0:01:35]}  Nh5 {[%clk 0:02:34]} 14. h4 {[%clk 0:01:27]}  Be6 {[%clk 0:02:28]} 15. Nd5 {[%clk 0:01:10]}  Nxd5 {[%clk 0:02:23]} 16. exd5 {[%clk 0:01:05]}  Bf5 {[%clk 0:02:23]} 17. O-O-O {[%clk 0:00:28]}  Rc8 {[%clk 0:02:17]} 18. Bd3 {[%clk 0:00:23]}  Bxd3 {[%clk 0:02:11]} 19. Qxd3 {[%clk 0:00:23]}  Qd7 {[%clk 0:02:05]} 20. Qb5 {[%clk 0:00:09]}  Qf5 {[%clk 0:01:51]} 21. Qe2 {[%clk 0:00:09]}  Ng3 {[%clk 0:01:49]} 22. Qd2 {[%clk 0:00:06]}  Nxh1 {[%clk 0:01:47]} 23. Rxh1 {[%clk 0:00:07]}  Qxf3 {[%clk 0:01:45]} 24. Kb1 {[%clk 0:00:06]}  Qxh1+ {[%clk 0:01:45]} 25. Ka2 {[%clk 0:00:05]}  Qe4 {[%clk 0:01:44]} 0-1


[Site "https://www.chess.com"]

[Event "Titled Tuesday Blitz June 13 Late 2023"]
[White "Tokhirjonova, Gulrukhbegim"]
[Black "dorpato"]
[WhiteFideId "14203626"]
[WhiteElo "2265"]
[BlackElo "2068"]
[Result "1-0"]
[Round "1"]
[TimeControl "180+2"]
[Date "2023.06.13"]
[WhiteClock "0:01:41"]
[BlackClock "0:00:13"]
[Board "194"]

1. d4 {[%clk 0:02:53]}  Nf6 {[%clk 0:02:54]} 2. Bf4 {[%clk 0:02:53]}  g6 {[%clk 0:02:54]} 3. Nc3 {[%clk 0:02:44]}  d5 {[%clk 0:02:39]} 4. Qd2 {[%clk 0:02:40]}  Bg7 {[%clk 0:02:22]} 5. O-O-O {[%clk 0:02:37]}  O-O {[%clk 0:02:11]} 6. Bh6 {[%clk 0:02:35]}  b6 {[%clk 0:02:04]} 7. Bxg7 {[%clk 0:02:28]}  Kxg7 {[%clk 0:01:55]} 8. f3 {[%clk 0:02:29]}  Bb7 {[%clk 0:01:54]} 9. g4 {[%clk 0:02:27]}  Nfd7 {[%clk 0:01:46]} 10. h4 {[%clk 0:02:27]}  e6 {[%clk 0:01:38]} 11. h5 {[%clk 0:02:25]}  gxh5 {[%clk 0:01:22]} 12. Rxh5 {[%clk 0:02:22]}  Qf6 {[%clk 0:01:21]} 13. Nh3 {[%clk 0:02:20]}  c5 {[%clk 0:01:12]} 14. e3 {[%clk 0:02:15]}  cxd4 {[%clk 0:00:59]} 15. exd4 {[%clk 0:02:12]}  e5 {[%clk 0:00:57]} 16. dxe5 {[%clk 0:02:08]}  Nxe5 {[%clk 0:00:51]} 17. Rf5 {[%clk 0:02:08]}  Nxf3 {[%clk 0:00:30]} 18. Qf4 {[%clk 0:02:03]}  Qg6 {[%clk 0:00:19]} 19. Qxf3 {[%clk 0:02:00]}  f6 {[%clk 0:00:19]} 20. Nf4 {[%clk 0:01:59]}  Qf7 {[%clk 0:00:18]} 21. Re1 {[%clk 0:01:55]}  Nd7 {[%clk 0:00:17]} 22. Ne6+ {[%clk 0:01:53]}  Kh8 {[%clk 0:00:16]} 23. Nxf8 {[%clk 0:01:53]}  Rxf8 {[%clk 0:00:17]} 24. Bd3 {[%clk 0:01:52]}  Ne5 {[%clk 0:00:17]} 25. Rexe5 {[%clk 0:01:51]}  Qg6 {[%clk 0:00:16]} 26. Re7 {[%clk 0:01:49]}  Qh6+ {[%clk 0:00:15]} 27. Kd1 {[%clk 0:01:44]}  Bc6 {[%clk 0:00:14]} 28. Rh5 {[%clk 0:01:41]}  Qg6 {[%clk 0:00:13]} 1-0


[Site "https://www.chess.com"]

[Event "Titled Tuesday Blitz June 13 Late 2023"]
[White "Osmonbekov, Talaibek"]
[Black "Molenda, Marcin"]
[WhiteFideId "2017253"]
[BlackFideId "1173065"]
[WhiteElo "2135"]
[BlackElo "2286"]
[Result "1-0"]
[Round "1"]
[TimeControl "180+2"]
[Date "2023.06.13"]
[WhiteClock "0:01:57"]
[BlackClock "0:01:20"]
[Board "195"]

1. d4 {[%clk 0:02:59]}  d5 {[%clk 0:02:58]} 2. Bf4 {[%clk 0:03:00]}  Nf6 {[%clk 0:02:52]} 3. Nc3 {[%clk 0:02:59]}  c6 {[%clk 0:02:50]} 4. e3 {[%clk 0:02:59]}  Bf5 {[%clk 0:02:49]} 5. Nf3 {[%clk 0:02:58]}  e6 {[%clk 0:02:50]} 6. Ne5 {[%clk 0:02:58]}  Nbd7 {[%clk 0:02:49]} 7. g4 {[%clk 0:02:58]}  Bg6 {[%clk 0:02:49]} 8. h4 {[%clk 0:02:57]}  h5 {[%clk 0:02:27]} 9. Nxg6 {[%clk 0:02:56]}  fxg6 {[%clk 0:02:28]} 10. Bd3 {[%clk 0:02:56]}  Kf7 {[%clk 0:02:20]} 11. g5 {[%clk 0:02:54]}  Ng8 {[%clk 0:02:18]} 12. Qf3 {[%clk 0:02:53]}  Ngf6 {[%clk 0:01:36]} 13. Rg1 {[%clk 0:02:34]}  Bb4 {[%clk 0:01:32]} 14. gxf6 {[%clk 0:02:19]}  Nxf6 {[%clk 0:01:31]} 15. Bxg6+ {[%clk 0:02:18]}  Ke7 {[%clk 0:01:32]} 16. Bd3 {[%clk 0:02:12]}  Qa5 {[%clk 0:01:28]} 17. Rxg7+ {[%clk 0:02:03]}  Kf8 {[%clk 0:01:29]} 18. Be5 {[%clk 0:01:57]}  Bxc3+ {[%clk 0:01:27]} 19. bxc3 {[%clk 0:01:57]}  Qxc3+ {[%clk 0:01:20]} 20. Ke2 {[%clk 0:01:57]} 1-0


[Site "https://www.chess.com"]

[Event "Titled Tuesday Blitz June 13 Late 2023"]
[White "DampFalcon"]
[Black "angelgab3"]
[WhiteElo "1828"]
[BlackElo "2524"]
[Result "1/2-1/2"]
[Round "1"]
[TimeControl "180+2"]
[Date "2023.06.13"]
[WhiteClock "0:00:20"]
[BlackClock "0:00:33"]
[Board "201"]

1. e4 {[%clk 0:02:59]}  e5 {[%clk 0:02:59]} 2. Nf3 {[%clk 0:02:59]}  Nc6 {[%clk 0:02:59]} 3. d4 {[%clk 0:03:00]}  exd4 {[%clk 0:02:59]} 4. Nxd4 {[%clk 0:03:01]}  Nf6 {[%clk 0:02:59]} 5. Nxc6 {[%clk 0:03:00]}  bxc6 {[%clk 0:03:00]} 6. e5 {[%clk 0:03:00]}  Qe7 {[%clk 0:03:01]} 7. Qe2 {[%clk 0:03:01]}  Nd5 {[%clk 0:03:01]} 8. h4 {[%clk 0:03:01]}  Qe6 {[%clk 0:02:53]} 9. g3 {[%clk 0:03:00]}  f6 {[%clk 0:02:50]} 10. c4 {[%clk 0:02:55]}  Nb6 {[%clk 0:02:48]} 11. exf6 {[%clk 0:02:35]}  gxf6 {[%clk 0:02:40]} 12. Nc3 {[%clk 0:02:33]}  Ba6 {[%clk 0:02:35]} 13. Qxe6+ {[%clk 0:02:17]}  dxe6 {[%clk 0:02:36]} 14. b3 {[%clk 0:02:16]}  Bb4 {[%clk 0:02:33]} 15. Bd2 {[%clk 0:02:16]}  O-O-O {[%clk 0:02:32]} 16. O-O-O {[%clk 0:02:11]}  Rd7 {[%clk 0:02:16]} 17. Bg2 {[%clk 0:01:51]}  Rhd8 {[%clk 0:02:15]} 18. Kc2 {[%clk 0:01:51]}  Bb7 {[%clk 0:02:05]} 19. Rhe1 {[%clk 0:01:32]}  e5 {[%clk 0:01:45]} 20. Bh3 {[%clk 0:01:30]}  Kb8 {[%clk 0:01:36]} 21. Bxd7 {[%clk 0:01:30]}  Rxd7 {[%clk 0:01:37]} 22. Be3 {[%clk 0:01:29]}  Bc8 {[%clk 0:01:28]} 23. Rxd7 {[%clk 0:01:28]}  Bxd7 {[%clk 0:01:29]} 24. Rd1 {[%clk 0:01:27]}  Bf5+ {[%clk 0:01:29]} 25. Kb2 {[%clk 0:01:27]}  a5 {[%clk 0:01:28]} 26. a3 {[%clk 0:01:20]}  Be7 {[%clk 0:01:26]} 27. f4 {[%clk 0:01:13]}  exf4 {[%clk 0:01:25]} 28. Bxf4 {[%clk 0:01:13]}  Kc8 {[%clk 0:01:20]} 29. Re1 {[%clk 0:01:09]}  Kd7 {[%clk 0:01:20]} 30. Ne2 {[%clk 0:01:09]}  a4 {[%clk 0:01:19]} 31. Nd4 {[%clk 0:01:07]}  Bg6 {[%clk 0:01:12]} 32. g4 {[%clk 0:00:59]}  axb3 {[%clk 0:01:10]} 33. Kxb3 {[%clk 0:00:59]}  Bf7 {[%clk 0:01:09]} 34. Nf5 {[%clk 0:00:55]}  Bxc4+ {[%clk 0:01:06]} 35. Kc3 {[%clk 0:00:52]}  Bxa3 {[%clk 0:01:05]} 36. Rd1+ {[%clk 0:00:52]}  Bd5 {[%clk 0:01:05]} 37. Ra1 {[%clk 0:00:48]}  Bc5 {[%clk 0:01:00]} 38. Rf1 {[%clk 0:00:42]}  Bg2 {[%clk 0:00:58]} 39. Rd1+ {[%clk 0:00:41]}  Nd5+ {[%clk 0:00:58]} 40. Kb2 {[%clk 0:00:40]}  Bf3 {[%clk 0:00:58]} 41. Rd3 {[%clk 0:00:38]}  Bxg4 {[%clk 0:00:58]} 42. Ne3 {[%clk 0:00:37]}  Be6 {[%clk 0:00:55]} 43. Nc4 {[%clk 0:00:31]}  Ke7 {[%clk 0:00:52]} 44. Bd2 {[%clk 0:00:29]}  h5 {[%clk 0:00:42]} 45. Na5 {[%clk 0:00:25]}  Bd7 {[%clk 0:00:40]} 46. Nb3 {[%clk 0:00:23]}  Bd6 {[%clk 0:00:40]} 47. Nd4 {[%clk 0:00:21]}  Be5 {[%clk 0:00:39]} 48. Be3 {[%clk 0:00:20]}  Nxe3 {[%clk 0:00:38]} 49. Rxe3 {[%clk 0:00:20]}  c5 {[%clk 0:00:38]} 50. Rxe5+ {[%clk 0:00:17]}  fxe5 {[%clk 0:00:38]} 51. Ne2 {[%clk 0:00:18]}  Bg4 {[%clk 0:00:31]} 52. Ng3 {[%clk 0:00:17]}  Ke6 {[%clk 0:00:32]} 53. Kc2 {[%clk 0:00:18]}  Kd5 {[%clk 0:00:33]} 54. Kd3 {[%clk 0:00:18]}  e4+ {[%clk 0:00:32]} 55. Ke3 {[%clk 0:00:17]}  Bf3 {[%clk 0:00:33]} 56. Nf1 {[%clk 0:00:16]}  Kc4 {[%clk 0:00:32]} 57. Ng3 {[%clk 0:00:16]}  Kc3 {[%clk 0:00:33]} 58. Nxe4+ {[%clk 0:00:16]}  Bxe4 {[%clk 0:00:33]} 59. Kxe4 {[%clk 0:00:17]}  c4 {[%clk 0:00:33]} 60. Kf5 {[%clk 0:00:17]}  Kb2 {[%clk 0:00:33]} 61. Kg5 {[%clk 0:00:18]}  c3 {[%clk 0:00:34]} 62. Kxh5 {[%clk 0:00:19]}  c2 {[%clk 0:00:35]} 63. Kg6 {[%clk 0:00:20]}  c1=Q {[%clk 0:00:36]} 64. h5 {[%clk 0:00:20]}  Qg1+ {[%clk 0:00:36]} 65. Kh7 {[%clk 0:00:20]}  Kc3 {[%clk 0:00:37]} 66. h6 {[%clk 0:00:21]}  Kd4 {[%clk 0:00:37]} 67. Kh8 {[%clk 0:00:20]}  Kd5 {[%clk 0:00:32]} 68. h7 {[%clk 0:00:20]}  c5 {[%clk 0:00:33]} 1/2-1/2


[Site "https://www.chess.com"]

[Event "Titled Tuesday Blitz June 13 Late 2023"]
[White "Urbina Perez, Juan Antonio"]
[Black "Munoz Misselis, Nelson Carlos"]
[WhiteFideId "2217368"]
[BlackFideId "6601790"]
[WhiteElo "2197"]
[BlackElo "1749"]
[Result "1-0"]
[Round "1"]
[TimeControl "180+2"]
[Date "2023.06.13"]
[WhiteClock "0:01:26"]
[BlackClock "0:00:00"]
[Board "202"]

1. Nf3 {[%clk 0:02:54]}  d6 {[%clk 0:02:58]} 2. g3 {[%clk 0:02:52]}  Nf6 {[%clk 0:02:59]} 3. Bg2 {[%clk 0:02:53]}  e5 {[%clk 0:02:59]} 4. O-O {[%clk 0:02:53]}  c6 {[%clk 0:03:00]} 5. b3 {[%clk 0:02:51]}  Be7 {[%clk 0:03:00]} 6. Bb2 {[%clk 0:02:51]}  O-O {[%clk 0:03:01]} 7. c4 {[%clk 0:02:51]}  Re8 {[%clk 0:03:01]} 8. d4 {[%clk 0:02:48]}  e4 {[%clk 0:03:01]} 9. Nfd2 {[%clk 0:02:47]}  d5 {[%clk 0:03:00]} 10. e3 {[%clk 0:02:47]}  Be6 {[%clk 0:02:57]} 11. Nc3 {[%clk 0:02:47]}  Na6 {[%clk 0:02:53]} 12. a3 {[%clk 0:02:46]}  Nc7 {[%clk 0:02:48]} 13. f3 {[%clk 0:02:43]}  c5 {[%clk 0:02:49]} 14. cxd5 {[%clk 0:02:38]}  Ncxd5 {[%clk 0:02:48]} 15. Nxd5 {[%clk 0:02:38]}  Nxd5 {[%clk 0:02:47]} 16. Qe2 {[%clk 0:02:28]}  exf3 {[%clk 0:02:46]} 17. Qxf3 {[%clk 0:02:22]}  cxd4 {[%clk 0:02:32]} 18. Bxd4 {[%clk 0:02:23]}  Bf8 {[%clk 0:02:31]} 19. Rad1 {[%clk 0:02:15]}  b6 {[%clk 0:01:26]} 20. Ne4 {[%clk 0:02:10]}  Qc7 {[%clk 0:01:23]} 21. Rc1 {[%clk 0:02:09]}  Qb7 {[%clk 0:01:22]} 22. Ng5 {[%clk 0:02:05]}  h6 {[%clk 0:01:06]} 23. Nxe6 {[%clk 0:02:04]}  fxe6 {[%clk 0:01:07]} 24. Be5 {[%clk 0:02:01]}  Rac8 {[%clk 0:01:06]} 25. Rxc8 {[%clk 0:01:50]}  Rxc8 {[%clk 0:01:05]} 26. e4 {[%clk 0:01:39]}  Ne7 {[%clk 0:00:50]} 27. Qf7+ {[%clk 0:01:37]}  Kh8 {[%clk 0:00:50]} 28. Qxe6 {[%clk 0:01:36]}  Nc6 {[%clk 0:00:36]} 29. Qxh6+ {[%clk 0:01:32]}  Kg8 {[%clk 0:00:30]} 30. Qe6+ {[%clk 0:01:32]}  Kh8 {[%clk 0:00:29]} 31. Bb2 {[%clk 0:01:32]}  Na5 {[%clk 0:00:21]} 32. e5 {[%clk 0:01:28]}  Qe7 {[%clk 0:00:22]} 33. Qh3+ {[%clk 0:01:26]}  Kg8 {[%clk 0:00:00]} 34. Bd5+ {[%clk 0:01:26]} 1-0


[Site "https://www.chess.com"]

[Event "Titled Tuesday Blitz June 13 Late 2023"]
[White "Sieciechowicz, Marcin"]
[Black "Nihal Sarin"]
[WhiteFideId "1130170"]
[BlackFideId "25092340"]
[WhiteElo "2301"]
[BlackElo "2689"]
[Result "0-1"]
[Round "2"]
[TimeControl "180+2"]
[Date "2023.06.13"]
[WhiteClock "0:00:03"]
[BlackClock "0:00:25"]
[Board "2"]

1. d4 {[%clk 0:03:00]}  Nf6 {[%clk 0:02:46]} 2. Bf4 {[%clk 0:03:00]}  d5 {[%clk 0:02:45]} 3. e3 {[%clk 0:03:01]}  c5 {[%clk 0:02:42]} 4. c3 {[%clk 0:03:01]}  cxd4 {[%clk 0:02:36]} 5. exd4 {[%clk 0:03:00]}  Bf5 {[%clk 0:02:37]} 6. Nd2 {[%clk 0:02:59]}  e6 {[%clk 0:02:33]} 7. Ngf3 {[%clk 0:02:59]}  Nc6 {[%clk 0:02:33]} 8. Be2 {[%clk 0:02:58]}  Bd6 {[%clk 0:02:32]} 9. Bg3 {[%clk 0:02:58]}  O-O {[%clk 0:02:31]} 10. O-O {[%clk 0:02:53]}  h6 {[%clk 0:02:31]} 11. Qb3 {[%clk 0:02:52]}  Rb8 {[%clk 0:02:30]} 12. Rfe1 {[%clk 0:02:52]}  Bxg3 {[%clk 0:02:27]} 13. hxg3 {[%clk 0:02:52]}  b5 {[%clk 0:02:28]} 14. Ne5 {[%clk 0:02:42]}  Qc7 {[%clk 0:02:13]} 15. Bf1 {[%clk 0:02:34]}  b4 {[%clk 0:02:07]} 16. Nxc6 {[%clk 0:02:28]}  Qxc6 {[%clk 0:02:08]} 17. cxb4 {[%clk 0:02:17]}  Qb6 {[%clk 0:01:58]} 18. Nf3 {[%clk 0:02:03]}  Qxb4 {[%clk 0:01:57]} 19. Qxb4 {[%clk 0:02:04]}  Rxb4 {[%clk 0:01:58]} 20. b3 {[%clk 0:02:05]}  a5 {[%clk 0:01:58]} 21. Rec1 {[%clk 0:01:49]}  a4 {[%clk 0:01:44]} 22. bxa4 {[%clk 0:01:48]}  Rxa4 {[%clk 0:01:39]} 23. Bb5 {[%clk 0:01:48]}  Ra3 {[%clk 0:01:39]} 24. Ne5 {[%clk 0:01:24]}  Ng4 {[%clk 0:01:39]} 25. Nc6 {[%clk 0:00:38]}  Rfa8 {[%clk 0:01:18]} 26. Ne7+ {[%clk 0:00:37]}  Kf8 {[%clk 0:01:18]} 27. Nxf5 {[%clk 0:00:37]}  exf5 {[%clk 0:01:19]} 28. Bc6 {[%clk 0:00:32]}  Rd8 {[%clk 0:01:03]} 29. Rc5 {[%clk 0:00:27]}  Nf6 {[%clk 0:01:03]} 30. f3 {[%clk 0:00:17]}  g5 {[%clk 0:00:59]} 31. Kh2 {[%clk 0:00:10]}  g4 {[%clk 0:00:51]} 32. f4 {[%clk 0:00:02]}  h5 {[%clk 0:00:47]} 33. Bb5 {[%clk 0:00:02]}  Ne4 {[%clk 0:00:46]} 34. Rc7 {[%clk 0:00:02]}  Nxg3 {[%clk 0:00:43]} 35. Bc6 {[%clk 0:00:02]}  h4 {[%clk 0:00:34]} 36. Rd7 {[%clk 0:00:02]}  Rxd7 {[%clk 0:00:34]} 37. Bxd7 {[%clk 0:00:03]}  Ke7 {[%clk 0:00:31]} 38. Bc6 {[%clk 0:00:03]}  Kd6 {[%clk 0:00:30]} 39. Be8 {[%clk 0:00:04]}  Ne2 {[%clk 0:00:30]} 40. Bxf7 {[%clk 0:00:04]}  Nxf4 {[%clk 0:00:22]} 41. Rf1 {[%clk 0:00:04]}  g3+ {[%clk 0:00:23]} 42. Kg1 {[%clk 0:00:04]}  Ne2+ {[%clk 0:00:24]} 43. Kh1 {[%clk 0:00:05]}  Nxd4 {[%clk 0:00:24]} 44. Bh5 {[%clk 0:00:05]}  Rxa2 {[%clk 0:00:24]} 45. Rd1 {[%clk 0:00:05]}  Ke5 {[%clk 0:00:24]} 46. Re1+ {[%clk 0:00:04]}  Kf6 {[%clk 0:00:25]} 47. Rd1 {[%clk 0:00:05]}  Kg5 {[%clk 0:00:24]} 48. Rxd4 {[%clk 0:00:03]}  Kxh5 {[%clk 0:00:25]} 49. Rd1 {[%clk 0:00:04]}  Kg4 {[%clk 0:00:25]} 50. Rd4+ {[%clk 0:00:03]}  f4 {[%clk 0:00:25]} 51. Rd1 {[%clk 0:00:03]}  h3 {[%clk 0:00:25]} 0-1


[Site "https://www.chess.com"]

[Event "Titled Tuesday Blitz June 13 Late 2023"]
[White "Vachier-Lagrave, Maxime"]
[Black "Ehlvest, Jaan"]
[WhiteFideId "623539"]
[BlackFideId "4500016"]
[WhiteElo "2739"]
[BlackElo "2442"]
[Result "1-0"]
[Round "2"]
[TimeControl "180+2"]
[Date "2023.06.13"]
[WhiteClock "0:01:47"]
[BlackClock "0:00:25"]
[Board "5"]

1. e4 {[%clk 0:02:59]}  c5 {[%clk 0:02:56]} 2. Nf3 {[%clk 0:02:59]}  Nc6 {[%clk 0:02:50]} 3. Nc3 {[%clk 0:02:55]}  g6 {[%clk 0:02:47]} 4. d4 {[%clk 0:02:53]}  cxd4 {[%clk 0:02:39]} 5. Nxd4 {[%clk 0:02:54]}  Bg7 {[%clk 0:02:37]} 6. Be3 {[%clk 0:02:54]}  Nf6 {[%clk 0:02:33]} 7. Bc4 {[%clk 0:02:53]}  O-O {[%clk 0:02:33]} 8. Bb3 {[%clk 0:02:53]}  d5 {[%clk 0:02:33]} 9. exd5 {[%clk 0:02:49]}  Na5 {[%clk 0:02:32]} 10. Qf3 {[%clk 0:02:41]}  Bg4 {[%clk 0:02:31]} 11. Qg3 {[%clk 0:02:40]}  Bh5 {[%clk 0:02:25]} 12. d6 {[%clk 0:02:33]}  e5 {[%clk 0:02:16]} 13. Qxe5 {[%clk 0:02:03]}  Ng4 {[%clk 0:02:15]} 14. Qd5 {[%clk 0:01:58]}  Nxb3 {[%clk 0:02:06]} 15. axb3 {[%clk 0:01:57]}  Re8 {[%clk 0:01:40]} 16. O-O {[%clk 0:01:55]}  Re5 {[%clk 0:01:32]} 17. Qxb7 {[%clk 0:01:53]}  Re8 {[%clk 0:00:42]} 18. d7 {[%clk 0:01:49]}  Rf8 {[%clk 0:00:39]} 19. Nc6 {[%clk 0:01:47]}  Qh4 {[%clk 0:00:25]} 20. Bf4 {[%clk 0:01:47]} 1-0


[Site "https://www.chess.com"]